[Event "Masterklassen-Elit 2025"]
[Site "Uppsala, Sweden"]
[Date "2025.07.05"]
[Round "8.3"]
[White "Olsson, William"]
[Black "Landgren, Andreas"]
[Result "1-0"]
[TimeControl "90 min for 40 move + 30 min with an increment of 30 sec starting move 1"]
[WhiteTitle "IM"]
[BlackTitle "FM"]
[WhiteFideId "1741721"]
[BlackFideId "1704311"]
[WhiteElo "2365"]
[BlackElo "2261"]

1. c4 {[%clk 01:30:51]} {[%emt 00:00:10]} c5 {[%clk 01:31:23]} {[%emt
00:00:06]} 2. Nc3 {[%clk 01:31:13]} {[%emt 00:00:08]} Nf6 {[%clk 01:31:34]}
{[%emt 00:00:18]} 3. g3 {[%clk 01:31:36]} {[%emt 00:00:07]} d5 {[%clk
01:31:52]} {[%emt 00:00:12]} 4. cxd5 {[%clk 01:32:01]} {[%emt 00:00:06]} Nxd5
{[%clk 01:32:20]} {[%emt 00:00:03]} 5. Bg2 {[%clk 01:32:17]} {[%emt 00:00:13]}
Nc7 {[%clk 01:32:42]} {[%emt 00:00:08]} 6. e3 {[%clk 01:32:40]} {[%emt
00:00:08]} e5 {[%clk 01:32:35]} {[%emt 00:00:35]} 7. Nge2 {[%clk 01:33:03]}
{[%emt 00:00:07]} Nc6 {[%clk 01:32:54]} {[%emt 00:00:12]} 8. f4 {[%clk
01:33:26]} {[%emt 00:00:07]} Be7 {[%clk 01:29:56]} {[%emt 00:03:27]} 9. fxe5
{[%clk 01:25:25]} {[%emt 00:08:31]} Nxe5 {[%clk 01:30:13]} {[%emt 00:00:14]} 10.
d4 {[%clk 01:25:49]} {[%emt 00:00:06]} cxd4 {[%clk 01:30:01]} {[%emt 00:00:42]}
11. exd4 {[%clk 01:26:17]} {[%emt 00:00:02]} Ng4 {[%clk 01:29:42]} {[%emt
00:00:48]} 12. O-O {[%clk 01:15:48]} {[%emt 00:10:59]} O-O {[%clk 01:29:25]}
{[%emt 00:00:47]} 13. h3 {[%clk 01:07:39]} {[%emt 00:08:39]} Nf6 {[%clk
01:29:15]} {[%emt 00:00:41]} 14. Qb3 {[%clk 01:07:21]} {[%emt 00:00:48]} Rb8
{[%clk 00:53:38]} {[%emt 00:36:06]} 15. Bf4 {[%clk 00:57:55]} {[%emt 00:09:56]}
b5 {[%clk 00:43:38]} {[%emt 00:10:31]} 16. a4 {[%clk 00:54:23]} {[%emt
00:04:02]} b4 {[%clk 00:20:56]} {[%emt 00:23:13]} 17. Nd1 {[%clk 00:43:53]}
{[%emt 00:10:59]} Bb7 {[%clk 00:18:06]} {[%emt 00:03:20]} 18. Ne3 {[%clk
00:42:58]} {[%emt 00:01:24]} Bxg2 {[%clk 00:16:22]} {[%emt 00:02:14]} 19. Kxg2
{[%clk 00:43:05]} {[%emt 00:00:24]} Rc8 {[%clk 00:14:52]} {[%emt 00:02:01]} 20.
Rac1 {[%clk 00:39:30]} {[%emt 00:04:05]} Ncd5 {[%clk 00:13:20]} {[%emt
00:02:02]} 21. Rxc8 {[%clk 00:39:38]} {[%emt 00:00:22]} Nxf4+ {[%clk 00:10:42]}
{[%emt 00:03:08]} 22. Nxf4 {[%clk 00:39:51]} {[%emt 00:00:17]} Qxc8 {[%clk
00:11:06]} {[%emt 00:00:06]} 23. Ned5 {[%clk 00:32:13]} {[%emt 00:08:08]} Nxd5
{[%clk 00:09:55]} {[%emt 00:01:41]} 24. Nxd5 {[%clk 00:31:42]} {[%emt
00:01:01]} Bd6 {[%clk 00:10:03]} {[%emt 00:00:22]} 25. Ne3 {[%clk 00:30:52]}
{[%emt 00:01:20]} Qb7+ {[%clk 00:06:48]} {[%emt 00:03:44]} 26. Qd5 {[%clk
00:24:42]} {[%emt 00:06:40]} Qxd5+ {[%clk 00:05:55]} {[%emt 00:01:23]} 27. Nxd5
{[%clk 00:25:11]} {[%emt 00:00:01]} Rc8 {[%clk 00:06:03]} {[%emt 00:00:22]} 28.
b3 {[%clk 00:24:25]} {[%emt 00:01:16]} f6 {[%clk 00:05:10]} {[%emt 00:01:24]}
29. Ne3 {[%clk 00:24:15]} {[%emt 00:00:40]} Rc3 {[%clk 00:03:02]} {[%emt
00:02:38]} 30. Nf5 {[%clk 00:24:30]} {[%emt 00:00:14]} Bc7 {[%clk 00:03:20]}
{[%emt 00:00:13]} 31. Rf3 {[%clk 00:24:54]} {[%emt 00:00:06]} Kf7 {[%clk
00:03:06]} {[%emt 00:00:44]} 32. Rxc3 {[%clk 00:24:04]} {[%emt 00:01:20]} bxc3
{[%clk 00:03:33]} {[%emt 00:00:03]} 33. Ne3 {[%clk 00:24:25]} {[%emt 00:00:09]}
Ke6 {[%clk 00:02:15]} {[%emt 00:01:48]} 34. Kf3 {[%clk 00:24:06]} {[%emt
00:00:49]} f5 {[%clk 00:02:27]} {[%emt 00:00:18]} 35. Nc2 {[%clk 00:23:09]}
{[%emt 00:01:27]} g5 {[%clk 00:02:44]} {[%emt 00:00:13]} 36. g4 {[%clk
00:22:09]} {[%emt 00:01:29]} Bf4 {[%clk 00:02:29]} {[%emt 00:00:46]} 37. Ke2
{[%clk 00:19:50]} {[%emt 00:02:48]} fxg4 {[%clk 00:01:47]} {[%emt 00:01:13]} 38.
hxg4 {[%clk 00:20:19]} {[%emt 00:00:01]} a5 {[%clk 00:01:11]} {[%emt 00:01:07]}
39. Kd3 {[%clk 00:20:00]} {[%emt 00:00:48]} Bd2 {[%clk 00:01:17]} {[%emt
00:00:23]} 40. Ke4 {[%clk 00:19:02]} {[%emt 00:01:29]} Bf4 {[%clk 00:00:46]}
{[%emt 00:01:01]} 41. Kd3 {[%clk 00:10:12]} {[%emt 00:09:19]} Bd2 {[%clk
00:28:52]} {[%emt 00:02:24]} 42. b4 {[%clk 00:40:12]} {[%emt 00:00:31]} axb4
{[%clk 00:29:12]} {[%emt 00:00:10]} 43. Nxb4 {[%clk 00:40:40]} {[%emt
00:00:01]} Kd6 {[%clk 00:22:15]} {[%emt 00:07:28]} 44. a5 {[%clk 00:33:52]}
{[%emt 00:07:18]} Kc7 {[%clk 00:21:33]} {[%emt 00:01:12]} 45. Nd5+ {[%clk
00:31:06]} {[%emt 00:03:17]} Kb7 {[%clk 00:20:56]} {[%emt 00:01:06]} 46. Nxc3
{[%clk 00:31:16]} {[%emt 00:00:20]} Be1 {[%clk 00:21:17]} {[%emt 00:00:08]} 47.
d5 {[%clk 00:30:31]} {[%emt 00:01:16]} Bg3 {[%clk 00:21:00]} {[%emt 00:00:47]}
48. Ne4 {[%clk 00:30:42]} {[%emt 00:00:19]} Bf4 {[%clk 00:19:06]} {[%emt
00:02:24]} 49. Nc5+ {[%clk 00:29:31]} {[%emt 00:01:41]} Ka7 {[%clk 00:18:13]}
{[%emt 00:01:23]} 50. Kc4 {[%clk 00:28:13]} {[%emt 00:01:48]} h6 {[%clk
00:18:34]} {[%emt 00:00:09]} 51. Kb5 {[%clk 00:27:48]} {[%emt 00:00:55]} 1-0

[Event "Masterklassen-Elit 2025"]
[Site "Uppsala, Sweden"]
[Date "2025.07.05"]
[Round "8.4"]
[White "Andersson, Tommy"]
[Black "Thorn, Eric"]
[Result "0-1"]
[TimeControl "90 min for 40 move + 30 min with an increment of 30 sec starting move 1"]
[WhiteTitle "IM"]
[BlackTitle "FM"]
[WhiteFideId "1703803"]
[BlackFideId "1710729"]
[WhiteElo "2348"]
[BlackElo "2357"]

1. Nf3 {[%clk 01:30:57]} {[%emt 00:00:02]} d5 {[%clk 01:30:52]} {[%emt
00:00:09]} 2. b3 {[%clk 01:31:00]} {[%emt 00:00:27]} Nf6 {[%clk 01:29:36]}
{[%emt 00:01:46]} 3. Bb2 {[%clk 01:31:22]} {[%emt 00:00:07]} Bf5 {[%clk
01:30:00]} {[%emt 00:00:05]} 4. g3 {[%clk 01:30:26]} {[%emt 00:01:27]} e6
{[%clk 01:29:44]} {[%emt 00:00:47]} 5. Bg2 {[%clk 01:30:41]} {[%emt 00:00:14]}
Be7 {[%clk 01:29:12]} {[%emt 00:01:02]} 6. O-O {[%clk 01:28:45]} {[%emt
00:02:26]} O-O {[%clk 01:26:55]} {[%emt 00:02:47]} 7. d3 {[%clk 01:27:52]}
{[%emt 00:01:22]} h6 {[%clk 01:25:56]} {[%emt 00:01:30]} 8. h3 {[%clk
01:27:15]} {[%emt 00:01:07]} c6 {[%clk 01:21:55]} {[%emt 00:04:32]} 9. Nbd2
{[%clk 01:26:56]} {[%emt 00:00:46]} a5 {[%clk 01:21:05]} {[%emt 00:01:22]} 10.
a4 {[%clk 01:24:24]} {[%emt 00:03:03]} Bh7 {[%clk 01:20:00]} {[%emt 00:01:35]}
11. Re1 {[%clk 01:22:40]} {[%emt 00:02:13]} Na6 {[%clk 01:14:45]} {[%emt
00:05:45]} 12. e4 {[%clk 01:18:34]} {[%emt 00:04:36]} Nb4 {[%clk 01:05:27]}
{[%emt 00:09:48]} 13. Ne5 {[%clk 01:15:51]} {[%emt 00:03:12]} Qc7 {[%clk
01:03:08]} {[%emt 00:02:48]} 14. Ng4 {[%clk 01:04:57]} {[%emt 00:11:25]} Nxg4
{[%clk 00:58:15]} {[%emt 00:05:24]} 15. Qxg4 {[%clk 01:01:27]} {[%emt
00:04:00]} d4 {[%clk 00:57:43]} {[%emt 00:01:02]} 16. Rac1 {[%clk 00:59:28]}
{[%emt 00:02:29]} Na2 {[%clk 00:54:23]} {[%emt 00:03:50]} 17. Bxd4 {[%clk
00:53:32]} {[%emt 00:06:26]} e5 {[%clk 00:54:43]} {[%emt 00:00:11]} 18. Bb2
{[%clk 00:53:50]} {[%emt 00:00:11]} Nxc1 {[%clk 00:53:04]} {[%emt 00:02:09]} 19.
Rxc1 {[%clk 00:50:47]} {[%emt 00:03:33]} Bg5 {[%clk 00:46:30]} {[%emt
00:07:04]} 20. Rd1 {[%clk 00:49:00]} {[%emt 00:02:17]} b5 {[%clk 00:46:01]}
{[%emt 00:00:59]} 21. Nf1 {[%clk 00:39:52]} {[%emt 00:09:38]} Rad8 {[%clk
00:29:43]} {[%emt 00:16:49]} 22. h4 {[%clk 00:34:30]} {[%emt 00:05:51]} Be7
{[%clk 00:29:50]} {[%emt 00:00:22]} 23. axb5 {[%clk 00:34:35]} {[%emt
00:00:26]} cxb5 {[%clk 00:29:08]} {[%emt 00:01:12]} 24. Ne3 {[%clk 00:32:16]}
{[%emt 00:02:49]} Bc5 {[%clk 00:28:12]} {[%emt 00:01:26]} 25. Nd5 {[%clk
00:31:48]} {[%emt 00:00:58]} Qd6 {[%clk 00:28:08]} {[%emt 00:00:33]} 26. Rd2
{[%clk 00:24:31]} {[%emt 00:07:48]} f5 {[%clk 00:24:58]} {[%emt 00:03:40]} 27.
exf5 {[%clk 00:23:01]} {[%emt 00:02:00]} Bxf5 {[%clk 00:25:21]} {[%emt
00:00:06]} 28. Qh5 {[%clk 00:16:50]} {[%emt 00:06:42]} Rde8 {[%clk 00:18:55]}
{[%emt 00:06:56]} 29. Re2 {[%clk 00:15:37]} {[%emt 00:01:43]} Qd7 {[%clk
00:11:25]} {[%emt 00:08:00]} 30. Rd2 {[%clk 00:05:19]} {[%emt 00:10:48]} Bg4
{[%clk 00:06:13]} {[%emt 00:05:41]} 31. Qg6 {[%clk 00:05:34]} {[%emt 00:00:16]}
Bf5 {[%clk 00:06:33]} {[%emt 00:00:10]} 32. Qh5 {[%clk 00:04:27]} {[%emt
00:01:36]} Bg4 {[%clk 00:06:38]} {[%emt 00:00:25]} 33. Qg6 {[%clk 00:04:49]}
{[%emt 00:00:08]} Bf3 {[%clk 00:06:53]} {[%emt 00:00:16]} 34. Bxf3 {[%clk
00:04:25]} {[%emt 00:00:54]} Rxf3 {[%clk 00:07:12]} {[%emt 00:00:11]} 35. d4
{[%clk 00:02:36]} {[%emt 00:02:19]} exd4 {[%clk 00:05:44]} {[%emt 00:01:58]} 36.
Bxd4 {[%clk 00:02:00]} {[%emt 00:01:06]} Re1+ {[%clk 00:04:55]} {[%emt
00:01:19]} 37. Kg2 {[%clk 00:02:21]} {[%emt 00:00:08]} Rxg3+ {[%clk 00:05:18]}
{[%emt 00:00:07]} 38. Qxg3 {[%clk 00:01:41]} {[%emt 00:01:11]} Qxd5+ {[%clk
00:05:43]} {[%emt 00:00:05]} 39. f3 {[%clk 00:01:28]} {[%emt 00:00:43]} Re7
{[%clk 00:03:56]} {[%emt 00:02:17]} 40. Qb8+ {[%clk 00:01:04]} {[%emt
00:00:54]} Kh7 {[%clk 00:00:42]} {[%emt 00:03:44]} 41. Qxb5 {[%clk 00:27:45]}
{[%emt 00:03:48]} Rf7 {[%clk 00:23:59]} {[%emt 00:07:13]} 42. Rd3 {[%clk
00:22:58]} {[%emt 00:05:17]} Rf5 {[%clk 00:21:55]} {[%emt 00:02:35]} 43. Qxa5
{[%clk 00:12:19]} {[%emt 00:11:09]} Qc6 {[%clk 00:22:08]} {[%emt 00:00:16]} 44.
Qc3 {[%clk 00:10:27]} {[%emt 00:02:22]} Qg6+ {[%clk 00:22:26]} {[%emt
00:00:13]} 45. Kf1 {[%clk 00:10:32]} {[%emt 00:00:25]} Qh5 {[%clk 00:19:36]}
{[%emt 00:03:20]} 46. Ke2 {[%clk 00:09:13]} {[%emt 00:01:49]} Be7 {[%clk
00:17:00]} {[%emt 00:03:05]} 47. Bxg7 {[%clk 00:03:01]} {[%emt 00:06:43]} Qg6
{[%clk 00:12:29]} {[%emt 00:05:01]} 48. Re3 {[%clk 00:01:33]} {[%emt 00:01:59]}
Bc5 {[%clk 00:08:58]} {[%emt 00:04:01]} 49. Bd4 {[%clk 00:01:47]} {[%emt
00:00:15]} Rd5 {[%clk 00:06:26]} {[%emt 00:03:02]} 50. Kf2 {[%clk 00:00:36]}
{[%emt 00:01:41]} Bxd4 {[%clk 00:06:26]} {[%emt 00:00:30]} 0-1

[Event "Masterklassen-Elit 2025"]
[Site "Uppsala, Sweden"]
[Date "2025.07.05"]
[Round "8.5"]
[White "Lindberg, Bengt"]
[Black "Carlsson, Ludvig"]
[Result "1/2-1/2"]
[TimeControl "90 min for 40 move + 30 min with an increment of 30 sec starting move 1"]
[WhiteTitle "IM"]
[BlackTitle "IM"]
[WhiteFideId "1700359"]
[BlackFideId "1727010"]
[WhiteElo "2334"]
[BlackElo "2379"]

1. e4 {[%clk 01:30:56]} {[%emt 00:00:04]} c5 {[%clk 01:30:19]} {[%emt
00:00:41]} 2. Nf3 {[%clk 01:31:16]} {[%emt 00:00:11]} d6 {[%clk 01:30:17]}
{[%emt 00:00:31]} 3. d4 {[%clk 01:31:36]} {[%emt 00:00:10]} cxd4 {[%clk
01:30:29]} {[%emt 00:00:18]} 4. Nxd4 {[%clk 01:31:57]} {[%emt 00:00:08]} Nf6
{[%clk 01:30:44]} {[%emt 00:00:16]} 5. Nc3 {[%clk 01:32:19]} {[%emt 00:00:08]}
a6 {[%clk 01:30:32]} {[%emt 00:00:42]} 6. Bd3 {[%clk 01:32:37]} {[%emt
00:00:12]} e5 {[%clk 01:30:20]} {[%emt 00:00:41]} 7. Nde2 {[%clk 01:32:58]}
{[%emt 00:00:10]} Nc6 {[%clk 01:29:09]} {[%emt 00:01:41]} 8. O-O {[%clk
01:25:44]} {[%emt 00:07:43]} Be6 {[%clk 01:27:29]} {[%emt 00:02:10]} 9. f4
{[%clk 01:19:23]} {[%emt 00:06:51]} exf4 {[%clk 01:26:02]} {[%emt 00:01:57]} 10.
Nxf4 {[%clk 01:19:26]} {[%emt 00:00:27]} Be7 {[%clk 01:25:39]} {[%emt
00:00:53]} 11. Nxe6 {[%clk 01:13:58]} {[%emt 00:06:00]} fxe6 {[%clk 01:24:43]}
{[%emt 00:01:25]} 12. Qf3 {[%clk 01:12:58]} {[%emt 00:01:30]} Ne5 {[%clk
01:15:07]} {[%emt 00:10:06]} 13. Qh3 {[%clk 01:12:21]} {[%emt 00:01:07]} Qd7
{[%clk 01:15:13]} {[%emt 00:00:23]} 14. Bf4 {[%clk 01:04:07]} {[%emt 00:08:45]}
Nxd3 {[%clk 01:09:28]} {[%emt 00:06:15]} 15. cxd3 {[%clk 00:53:25]} {[%emt
00:11:12]} O-O {[%clk 01:08:03]} {[%emt 00:01:52]} 16. Bg5 {[%clk 00:50:13]}
{[%emt 00:03:45]} h6 {[%clk 00:56:00]} {[%emt 00:12:33]} 17. Be3 {[%clk
00:49:48]} {[%emt 00:00:55]} d5 {[%clk 00:55:17]} {[%emt 00:01:13]} 18. e5
{[%clk 00:46:41]} {[%emt 00:03:37]} Nh7 {[%clk 00:51:43]} {[%emt 00:04:03]} 19.
Qg4 {[%clk 00:47:03]} {[%emt 00:00:08]} Kh8 {[%clk 00:49:26]} {[%emt 00:02:47]}
20. Ne2 {[%clk 00:43:57]} {[%emt 00:03:36]} Rxf1+ {[%clk 00:46:21]} {[%emt
00:03:35]} 21. Rxf1 {[%clk 00:44:15]} {[%emt 00:00:12]} Rf8 {[%clk 00:46:15]}
{[%emt 00:00:36]} 22. Nf4 {[%clk 00:20:42]} {[%emt 00:24:04]} Bg5 {[%clk
00:45:41]} {[%emt 00:01:03]} 23. Ng6+ {[%clk 00:21:07]} {[%emt 00:00:05]} Kg8
{[%clk 00:46:06]} {[%emt 00:00:05]} 24. Bf2 {[%clk 00:21:30]} {[%emt 00:00:08]}
Rf5 {[%clk 00:43:12]} {[%emt 00:03:23]} 25. Qe2 {[%clk 00:18:45]} {[%emt
00:03:15]} Qf7 {[%clk 00:33:21]} {[%emt 00:10:22]} 26. Nh4 {[%clk 00:17:43]}
{[%emt 00:01:32]} Bxh4 {[%clk 00:33:03]} {[%emt 00:00:48]} 27. Bxh4 {[%clk
00:18:12]} {[%emt 00:00:01]} Rxf1+ {[%clk 00:32:57]} {[%emt 00:00:36]} 28. Qxf1
{[%clk 00:18:40]} {[%emt 00:00:02]} Qf5 {[%clk 00:33:18]} {[%emt 00:00:10]} 29.
Qe2 {[%clk 00:16:49]} {[%emt 00:02:17]} h5 {[%clk 00:28:03]} {[%emt 00:05:48]}
30. Be7 {[%clk 00:14:05]} {[%emt 00:03:14]} Kf7 {[%clk 00:28:26]} {[%emt
00:00:08]} 31. Bd6 {[%clk 00:14:26]} {[%emt 00:00:09]} Kg6 {[%clk 00:28:50]}
{[%emt 00:00:05]} 32. h4 {[%emt 00:16:20]} Qf4 {[%clk 00:19:56]} {[%emt
00:00:36]} 33. Qf2 {[%emt 00:00:25]} Qg4 {[%emt 00:00:24]} 34. Kh2 {[%clk
00:06:58]} {[%emt 00:00:47]} Qd1 {[%clk 00:17:25]} {[%emt 00:03:22]} 35. Qg3+
{[%clk 00:05:59]} {[%emt 00:01:28]} Qg4 {[%clk 00:17:07]} {[%emt 00:00:49]} 36.
Qf2 {[%clk 00:03:52]} {[%emt 00:02:36]} Qd1 {[%clk 00:17:01]} {[%emt 00:00:36]}
37. Qg3+ {[%clk 00:04:08]} {[%emt 00:00:14]} Qg4 {[%clk 00:17:26]} {[%emt
00:00:05]} 38. Qf2 {[%clk 00:04:21]} {[%emt 00:00:17]} Kh6 {[%clk 00:09:32]}
{[%emt 00:08:25]} 39. Be7 {[%clk 00:03:57]} {[%emt 00:00:54]} Kg6 {[%clk
00:09:09]} {[%emt 00:00:53]} 1/2-1/2

[Event "Masterklassen-Elit 2025"]
[Site "Uppsala, Sweden"]
[Date "2025.07.06"]
[Round "9.1"]
[White "Ostlund, Joar"]
[Black "Strom-Engdahl, Alexander"]
[Result "1/2-1/2"]
[TimeControl "90 min for 40 move + 30 min with an increment of 30 sec starting move 1"]
[WhiteTitle "FM"]
[BlackTitle "FM"]
[WhiteFideId "1735020"]
[BlackFideId "1741586"]
[WhiteElo "2322"]
[BlackElo "2320"]

1. d4 {[%clk 01:30:57]} {[%emt 00:00:02]} d5 {[%clk 01:30:53]} {[%emt
00:00:08]} 2. c4 {[%clk 01:31:22]} {[%emt 00:00:05]} c6 {[%clk 01:31:18]}
{[%emt 00:00:05]} 3. Nf3 {[%clk 01:31:47]} {[%emt 00:00:04]} Nf6 {[%clk
01:31:28]} {[%emt 00:00:21]} 4. Nc3 {[%clk 01:32:09]} {[%emt 00:00:08]} dxc4
{[%clk 01:31:50]} {[%emt 00:00:08]} 5. a4 {[%clk 01:32:30]} {[%emt 00:00:09]}
Bf5 {[%clk 01:32:14]} {[%emt 00:00:05]} 6. Ne5 {[%clk 01:32:47]} {[%emt
00:00:13]} Nbd7 {[%clk 01:32:28]} {[%emt 00:00:17]} 7. Nxc4 {[%clk 01:33:03]}
{[%emt 00:00:13]} Qc7 {[%clk 01:32:51]} {[%emt 00:00:07]} 8. g3 {[%clk
01:33:06]} {[%emt 00:00:27]} e5 {[%clk 01:32:52]} {[%emt 00:00:30]} 9. dxe5
{[%clk 01:33:16]} {[%emt 00:00:21]} Nxe5 {[%clk 01:33:16]} {[%emt 00:00:06]} 10.
Bf4 {[%clk 01:33:29]} {[%emt 00:00:17]} Nfd7 {[%clk 01:33:39]} {[%emt
00:00:07]} 11. Bg2 {[%clk 01:33:03]} {[%emt 00:00:55]} g5 {[%clk 01:33:15]}
{[%emt 00:00:54]} 12. Bxe5 {[%clk 01:32:34]} {[%emt 00:00:59]} Nxe5 {[%clk
01:33:24]} {[%emt 00:00:21]} 13. Qd4 {[%clk 01:32:47]} {[%emt 00:00:17]} f6
{[%clk 01:33:34]} {[%emt 00:00:20]} 14. O-O-O {[%clk 01:32:11]} {[%emt
00:01:06]} Be6 {[%clk 01:33:01]} {[%emt 00:01:03]} 15. f4 {[%clk 01:32:07]}
{[%emt 00:00:35]} 1/2-1/2

[Event "Masterklassen-Elit 2025"]
[Site "Uppsala, Sweden"]
[Date "2025.07.06"]
[Round "9.2"]
[White "Landgren, Andreas"]
[Black "Ljung, Harald"]
[Result "0-1"]
[TimeControl "90 min for 40 move + 30 min with an increment of 30 sec starting move 1"]
[WhiteTitle "FM"]
[WhiteFideId "1704311"]
[BlackFideId "1738178"]
[WhiteElo "2261"]
[BlackElo "2194"]

1. d4 {[%clk 01:30:58]} {[%emt 00:00:01]} Nf6 {[%clk 01:30:50]} {[%emt
00:00:10]} 2. c4 {[%clk 01:31:24]} {[%emt 00:00:04]} e6 {[%clk 01:31:17]}
{[%emt 00:00:04]} 3. Nf3 {[%clk 01:31:47]} {[%emt 00:00:06]} d5 {[%clk
01:31:42]} {[%emt 00:00:05]} 4. Nc3 {[%clk 01:32:11]} {[%emt 00:00:07]} Be7
{[%clk 01:32:05]} {[%emt 00:00:06]} 5. Bf4 {[%clk 01:32:34]} {[%emt 00:00:08]}
O-O {[%clk 01:31:44]} {[%emt 00:00:50]} 6. e3 {[%clk 01:32:59]} {[%emt
00:00:05]} c6 {[%clk 01:30:16]} {[%emt 00:01:58]} 7. Bd3 {[%clk 01:32:57]}
{[%emt 00:00:32]} Nbd7 {[%clk 01:29:06]} {[%emt 00:01:40]} 8. cxd5 {[%clk
01:32:53]} {[%emt 00:00:34]} exd5 {[%clk 01:25:50]} {[%emt 00:03:46]} 9. Qc2
{[%clk 01:29:56]} {[%emt 00:03:27]} Nb6 {[%clk 01:21:18]} {[%emt 00:05:03]} 10.
h3 {[%clk 01:29:15]} {[%emt 00:01:11]} h6 {[%clk 01:07:49]} {[%emt 00:13:58]}
11. O-O-O {[%clk 01:24:07]} {[%emt 00:05:38]} Nc4 {[%clk 00:59:09]} {[%emt
00:09:11]} 12. g4 {[%clk 01:21:46]} {[%emt 00:02:50]} Qa5 {[%clk 00:52:34]}
{[%emt 00:07:06]} 13. g5 {[%clk 01:10:20]} {[%emt 00:11:56]} hxg5 {[%clk
00:51:57]} {[%emt 00:01:07]} 14. Nxg5 {[%clk 01:10:19]} b5 {[%clk 00:47:04]}
{[%emt 00:05:52]} 15. Kb1 {[%clk 01:03:08]} Ba6 {[%emt 01:23:42]} 16. Rdg1
{[%clk 00:08:25]} {[%emt 00:01:40]} b4 {[%clk 00:18:51]} {[%emt 00:06:47]} 17.
Nd1 {[%clk 00:06:35]} b3 {[%clk 00:12:07]} {[%emt 00:09:34]} 18. axb3 {[%clk
00:06:48]} Nd2+ {[%clk 00:11:43]} {[%emt 00:01:10]} 19. Kc1 {[%clk 00:07:12]}
Bb4 {[%clk 00:11:41]} {[%emt 00:00:40]} 20. Nc3 {[%clk 00:06:35]} Nxb3+ {[%clk
00:09:04]} {[%emt 00:04:13]} 21. Qxb3 {[%clk 00:06:03]} Bxd3 {[%clk 00:09:26]}
{[%emt 00:01:10]} 22. Kd2 {[%clk 00:06:03]} Bf5 {[%clk 00:08:37]} {[%emt
00:01:49]} 23. Ra1 {[%clk 00:05:00]} Qb6 {[%clk 00:07:57]} {[%emt 00:02:43]} 24.
Ke2 {[%clk 00:02:33]} a5 {[%clk 00:07:37]} {[%emt 00:03:48]} 25. f3 {[%clk
00:01:14]} {[%emt 00:02:26]} Nh5 {[%clk 00:06:33]} 26. Bh2 {[%clk 00:01:14]}
Rae8 {[%clk 00:06:33]} {[%emt 00:01:56]} 27. Kf2 {[%clk 00:01:21]} f6 {[%clk
00:03:57]} {[%emt 00:03:28]} 28. Nge4 {[%clk 00:01:23]} {[%emt 00:00:28]} Qd8
{[%clk 00:02:55]} {[%emt 00:01:32]} 29. Ng3 {[%clk 00:01:33]} {[%emt 00:00:21]}
Nxg3 {[%clk 00:02:22]} {[%emt 00:01:03]} 30. Bxg3 {[%clk 00:02:02]} {[%emt
00:00:01]} Kh8 {[%clk 00:02:19]} {[%emt 00:00:33]} 31. h4 {[%clk 00:02:08]}
{[%emt 00:00:24]} c5 {[%clk 00:00:46]} {[%emt 00:02:04]} 32. Qxd5 {[%clk
00:02:01]} {[%emt 00:00:36]} cxd4 {[%clk 00:00:40]} {[%emt 00:00:36]} 33. Qxd4
{[%clk 00:01:55]} {[%emt 00:00:36]} Qc8 {[%clk 00:00:44]} {[%emt 00:00:26]} 34.
Rhd1 {[%clk 00:01:28]} {[%emt 00:00:57]} Bc5 {[%clk 00:01:02]} {[%emt
00:00:13]} 35. Qd5 {[%clk 00:01:02]} {[%emt 00:00:56]} Rxe3 {[%clk 00:01:06]}
{[%emt 00:00:25]} 36. Kg2 {[%clk 00:01:26]} {[%emt 00:00:06]} Rfe8 {[%clk
00:01:09]} {[%emt 00:00:27]} 37. Rxa5 {[%clk 00:01:25]} {[%emt 00:00:31]} Bh3+
{[%clk 00:01:05]} {[%emt 00:00:33]} 38. Kh1 {[%clk 00:01:04]} {[%emt 00:00:52]}
Bf1 {[%clk 00:01:24]} {[%emt 00:00:11]} 39. Rxf1 {[%clk 00:01:00]} {[%emt
00:00:33]} Qh3+ {[%clk 00:01:50]} {[%emt 00:00:05]} 40. Kg1 {[%clk 00:01:11]}
{[%emt 00:00:19]} Re1+ {[%clk 00:02:11]} {[%emt 00:00:09]} 0-1